fUST/lending_fUST_20260511
["ID","MTS","AMOUNT","RATE_DAILY","PERIOD"]
[422012257,1778460643000,-1229.25,0.00012329,2]
[422012252,1778460643000,-1723.24,0.00012328,2]
[422012251,1778460643000,-500.0,0.00012328,2]
[422012256,1778460643000,-1475.1,0.00012329,2]
[422012255,1778460643000,-1770.12,0.00012329,2]
[422012269,1778460643000,-827.24,0.00012329,2]
[422012261,1778460643000,-592.81,0.00012329,2]
[422012268,1778460643000,-165.44,0.00012329,2]
[422012271,1778460643000,-438.264168,0.00012446,2]
[422012270,1778460643000,-183.94,0.00012355,2]
[422012274,1778460643000,-160.0,0.00012446,2]
[422012272,1778460643000,-160.0,0.00012446,2]
[422012273,1778460643000,-2206.025142,0.00012446,2]
[422012264,1778460643000,-343.06,0.00012329,2]
[422012266,1778460643000,-238.24,0.00012329,2]
[422012263,1778460643000,-411.68,0.00012329,2]
[422012265,1778460643000,-285.89,0.00012329,2]
[422012262,1778460643000,-494.01,0.00012329,2]
[422012267,1778460643000,-198.53,0.00012329,2]
[422012275,1778460643000,-4252.050284,0.00012446,2]
[422012276,1778460643000,-5204.098122,0.00012446,2]
[422012277,1778460643000,-10248.196245,0.00012446,2]
[422012278,1778460643000,-217.191232,0.00012446,2]
[422012279,1778460643000,-162.8435,0.00012465,2]
[422012280,1778460643000,-51997.63467032,0.0001248,2]
[422012219,1778460643000,-839.97,0.00012328,2]
[422012254,1778460643000,-996.71,0.00012328,2]
[422012247,1778460643000,-500.0,0.00012328,2]
[422012180,1778460643000,-2297.98368228,0.00012304,2]
[422012249,1778460643000,-1094.68,0.00012328,2]
[422012221,1778460643000,-500.0,0.00012328,2]
[422012223,1778460643000,-214.06524545,0.00012328,2]
[422012225,1778460643000,-2006.97,0.00012328,2]
[422012230,1778460643000,-536.11,0.00012328,2]
[422012229,1778460643000,-3321.25,0.00012328,2]
[422012233,1778460643000,-804.93,0.00012328,2]
[422012228,1778460643000,-686.21,0.00012328,2]
[422012226,1778460643000,-520.76,0.00012328,2]
[422012231,1778460643000,-652.41,0.00012328,2]
[422012234,1778460643000,-691.38,0.00012328,2]
[422012227,1778460643000,-3667.29,0.00012328,2]
[422012232,1778460643000,-500.0,0.00012328,2]
[422012245,1778460643000,-1631.67,0.00012328,2]
[422012246,1778460643000,-3434.96,0.00012328,2]
[422012222,1778460643000,-500.0,0.00012328,2]
[422012235,1778460643000,-1574.45,0.00012328,2]
[422012244,1778460643000,-3511.08,0.00012328,2]
[422012258,1778460643000,-1024.38,0.00012329,2]
[422012259,1778460643000,-853.65,0.00012329,2]
[422012248,1778460643000,-2721.43,0.00012328,2]
[422012260,1778460643000,-711.37,0.00012329,2]
[422012238,1778460643000,-886.53,0.00012328,2]
[422012242,1778460643000,-962.91,0.00012328,2]
[422012240,1778460643000,-2410.34,0.00012328,2]
[422012239,1778460643000,-1043.81,0.00012328,2]
[422012243,1778460643000,-1333.7,0.00012328,2]
[422012241,1778460643000,-648.04,0.00012328,2]
[422012237,1778460643000,-3102.72,0.00012328,2]
[422012236,1778460643000,-1411.41,0.00012328,2]
[422012293,1778460644000,-456.0,0.0001248,2]
[422012281,1778460644000,-6326.23149862,0.0001248,2]
[422012285,1778460644000,-556.0,0.00010758,2]
[422012289,1778460644000,-591.93,0.0001178,2]
[422012286,1778460644000,-185.0,0.00010758,2]
[422012290,1778460644000,-591.93,0.00012054,2]
[422012292,1778460644000,-239.68963094,0.0001248,2]
[422012291,1778460644000,-591.93,0.00012328,2]
[422012288,1778460644000,-591.93,0.00011506,2]
[422012287,1778460644000,-591.93,0.00011232,2]
[422012314,1778460647000,-500.0,0.00012602,2]
[422012315,1778460647000,-500.0,0.00012602,2]
[422012311,1778460647000,-500.0,0.00012602,2]
[422012317,1778460647000,-500.0,0.00012602,2]
[422012318,1778460647000,-500.0,0.00012602,2]
[422012313,1778460647000,-500.0,0.00012602,2]
[422012316,1778460647000,-329.03393795,0.00012602,2]
[422012309,1778460647000,-828.62,0.00012602,2]
[422012310,1778460647000,-598.23,0.00012602,2]
[422012308,1778460647000,-500.0,0.00012602,2]
[422012307,1778460647000,-500.0,0.00012602,2]
[422012305,1778460647000,-1608.2301,0.00012602,2]
[422012303,1778460647000,-8416.82020137,0.0001248,2]
[422012302,1778460647000,-16713.38403912,0.0001248,2]
[422012301,1778460647000,-1202.05235176,0.00011813,2]
[422012306,1778460647000,-500.0,0.00012602,2]
[422012320,1778460647000,-896.64,0.00012602,2]
[422012312,1778460647000,-500.0,0.00012602,2]
[422012322,1778460647000,-500.0,0.00012602,2]
[422012331,1778460647000,-746.13,0.00012602,2]
[422012338,1778460647000,-1362.78567238,0.00012602,2]
[422012335,1778460647000,-860.31,0.00012602,2]
[422012337,1778460647000,-1856.59,0.00012602,2]
[422012334,1778460647000,-883.3,0.00012602,2]
[422012336,1778460647000,-2449.63,0.00012602,2]
[422012333,1778460647000,-500.0,0.00012602,2]
[422012327,1778460647000,-928.13,0.00012602,2]
[422012328,1778460647000,-500.0,0.00012602,2]
[422012325,1778460647000,-866.95,0.00012602,2]
[422012324,1778460647000,-500.0,0.00012602,2]
[422012326,1778460647000,-515.28,0.00012602,2]
[422012323,1778460647000,-500.0,0.00012602,2]
[422012321,1778460647000,-500.0,0.00012602,2]
[422012330,1778460647000,-623.59,0.00012602,2]
[422012319,1778460647000,-500.0,0.00012602,2]
[422012332,1778460647000,-801.9,0.00012602,2]
[422012329,1778460647000,-570.31,0.00012602,2]
[422012492,1778461834000,-160.566907,9.755e-05,2]
[422012484,1778461834000,-3983.72723009,8.331e-05,2]
[422012487,1778461834000,-230.49053454,8.5e-05,7]
[422012486,1778461834000,-339.06910786,8.5e-05,7]
[422012494,1778461834000,-503.56012524,0.0001,2]
[422012485,1778461834000,-5000.0,8.415e-05,2]
[422012490,1778461834000,-300.0,8.587e-05,2]
[422012488,1778461834000,-346.07104906,8.501e-05,2]
[422012489,1778461834000,-152.0,8.501e-05,7]
[422012497,1778461834000,-61.49117734,0.00010692,2]
[422012496,1778461834000,-408.36383789,0.00010501,2]
[422012526,1778461838000,-1232.3818,0.00010958,2]
[422012533,1778461838000,-151.0,0.00010958,2]
[422012543,1778461838000,-500.0,0.00010958,2]
[422012532,1778461838000,-214.65915762,0.00010958,2]
[422012535,1778461838000,-500.0,0.00010958,2]
[422012534,1778461838000,-500.0,0.00010958,2]
[422012523,1778461838000,-2201.0,0.00010922,2]
[422012539,1778461838000,-500.0,0.00010958,2]
[422012536,1778461838000,-635.12,0.00010958,2]
[422012541,1778461838000,-500.0,0.00010958,2]
[422012542,1778461838000,-500.0,0.00010958,2]
[422012537,1778461838000,-500.0,0.00010958,2]
[422012529,1778461838000,-500.0,0.00010958,2]
[422012531,1778461838000,-500.0,0.00010958,2]
[422012538,1778461838000,-500.0,0.00010958,2]
[422012525,1778461838000,-537.6845,0.00010951,2]
[422012528,1778461838000,-500.0,0.00010958,2]
[422012524,1778461838000,-185.0,0.00010922,2]
[422012521,1778461838000,-160.0,0.00010702,2]
[422012530,1778461838000,-500.0,0.00010958,2]
[422012522,1778461838000,-484477.79833364,0.00010858,2]
[422012520,1778461838000,-1961.20083989,0.00010701,2]
[422012518,1778461838000,-160.0,0.00010692,2]
[422012519,1778461838000,-2114.57872316,0.00010701,2]
[422012516,1778461838000,-98.50882266,0.00010692,2]
[422012515,1778461838000,-3863.45243836,8.248e-05,2]
[422012514,1778461838000,-1136.54756164,8.248e-05,2]
[422012517,1778461838000,-161.61126227,0.00010692,2]
[422012527,1778461838000,-500.0,0.00010958,2]
[422012544,1778461838000,-657.43,0.00010958,2]
[422012540,1778461838000,-614.09,0.00010958,2]
[422012555,1778461838000,-500.0,0.00010958,2]
[422012576,1778461838000,-273.13249147,0.00010958,2]
[422012575,1778461838000,-3316.37264204,0.00010958,2]
[422012574,1778461838000,-1505.23,0.00010958,2]
[422012571,1778461838000,-514.66,0.00010958,2]
[422012573,1778461838000,-664.9,0.00010958,2]
[422012572,1778461838000,-500.0,0.00010958,2]
[422012570,1778461838000,-500.0,0.00010958,2]
[422012566,1778461838000,-629.98,0.00010958,2]
[422012567,1778461838000,-1453.15,0.00010958,2]
[422012545,1778461838000,-500.0,0.00010958,2]
[422012562,1778461838000,-500.0,0.00010958,2]
[422012559,1778461838000,-500.0,0.00010958,2]
[422012560,1778461838000,-625.67,0.00010958,2]
[422012569,1778461838000,-500.0,0.00010958,2]
[422012557,1778461838000,-500.0,0.00010958,2]
[422012563,1778461838000,-609.38,0.00010958,2]
[422012564,1778461838000,-1315.08,0.00010958,2]
[422012561,1778461838000,-568.01,0.00010958,2]
[422012549,1778461838000,-528.51,0.00010958,2]
[422012546,1778461838000,-500.0,0.00010958,2]
[422012547,1778461838000,-500.0,0.00010958,2]
[422012551,1778461838000,-747.53,0.00010958,2]
[422012556,1778461838000,-657.59,0.00010958,2]
[422012550,1778461838000,-2597.05,0.00010958,2]
[422012552,1778461838000,-2041.08,0.00010958,2]
[422012553,1778461838000,-1292.43,0.00010958,2]
[422012568,1778461838000,-500.0,0.00010958,2]
[422012565,1778461838000,-1735.15,0.00010958,2]
[422012548,1778461838000,-500.0,0.00010958,2]
[422012558,1778461838000,-500.0,0.00010958,2]
[422012554,1778461838000,-500.0,0.00010958,2]
[422012587,1778461840000,-897.44031782,0.00010958,2]
[422012592,1778461843000,-403.29280148,0.00010958,2]
[422012600,1778461846000,-8297.03174719,0.00010958,2]
[422012602,1778461846000,-500.0,0.00010958,2]
[422012614,1778461846000,-2327.04,0.00010958,2]
[422012603,1778461846000,-586.94,0.00010958,2]
[422012613,1778461846000,-782.86,0.00010958,2]
[422012605,1778461846000,-500.0,0.00010958,2]
[422012604,1778461846000,-2490.93,0.00010958,2]
[422012606,1778461846000,-518.53,0.00010958,2]
[422012607,1778461846000,-500.0,0.00010958,2]
[422012601,1778461846000,-2750.47,0.00010958,2]
[422012610,1778461846000,-821.01,0.00010958,2]
[422012612,1778461846000,-158.80501952,0.00010958,2]
[422012619,1778461846000,-1000.28,0.00010958,2]
[422012622,1778461846000,-462.79711066,0.00010958,2]
[422012620,1778461846000,-1223.75,0.00010958,2]
[422012621,1778461846000,-500.0,0.00010958,2]
[422012618,1778461846000,-500.0,0.00010958,2]
[422012611,1778461846000,-1180.83,0.00010958,2]
[422012615,1778461846000,-1807.76,0.00010958,2]
[422012616,1778461846000,-722.18,0.00010958,2]
[422012609,1778461846000,-603.7,0.00010958,2]
[422012608,1778461846000,-1058.56,0.00010958,2]
[422012617,1778461846000,-2633.31,0.00010958,2]
[422012625,1778462218000,193.92868657,0.00019178,120]
[422012751,1778463032000,-160.0,0.00010503,2]
[422012738,1778463032000,-152.0,8.5e-05,7]
[422012749,1778463032000,-161.61126227,0.00010503,2]
[422012755,1778463032000,-160.0,0.00010716,2]
[422012747,1778463032000,-401.47804585,0.00010431,2]
[422012743,1778463032000,-3956.0707238,9.463e-05,2]
[422012734,1778463032000,-340.23563207,8.431e-05,2]
[422012730,1778463032000,-5000.0,8.278e-05,2]
[422012732,1778463032000,-5000.0,8.362e-05,2]
[422012772,1778463032000,-405.89418017,0.00010758,2]
[422012740,1778463032000,-1511.8945265,9.463e-05,2]
[422012745,1778463032000,-300.0,9.651e-05,2]
[422012753,1778463032000,-160.0,0.00010503,2]
[422012757,1778463032000,-6939.41174452,0.00010758,2]
[422012759,1778463032000,-633.76542995,0.00010758,2]
[422012736,1778463032000,-152.0,8.5e-05,7]
[422012947,1778463040000,-930.00445972,0.00010651,2]
[422012985,1778463043000,-741.48,0.00010651,2]
[422012992,1778463046000,-2009.95432172,0.00010651,2]
[422012991,1778463046000,-1318.56121856,0.00010651,2]
[422012993,1778463046000,-177.54139637,0.00010758,2]
[422012995,1778463046000,-3312.5280615,0.0001084,2]
[422013005,1778463046000,-500.0,0.00010957,2]
[422012996,1778463046000,-1069.7023532,0.0001084,2]
[422012997,1778463046000,-537.6845,0.00010955,2]
[422012999,1778463046000,-500.0,0.00010957,2]
[422013002,1778463046000,-500.0,0.00010957,2]
[422013001,1778463046000,-500.0,0.00010957,2]
[422012998,1778463046000,-155.0,0.00010957,2]
[422013003,1778463046000,-500.0,0.00010957,2]
[422013000,1778463046000,-409.26834322,0.00010957,2]
[422013004,1778463046000,-500.0,0.00010957,2]
[422013006,1778463046000,-500.0,0.00010957,2]
[422013008,1778463046000,-500.0,0.00010957,2]
[422013007,1778463046000,-500.0,0.00010957,2]
[422012994,1778463046000,-3436.9622168,0.0001084,2]
[422013040,1778463047000,-506.49,0.00010958,2]
[422013036,1778463047000,-562.48,0.00010958,2]
[422013034,1778463047000,-500.0,0.00010958,2]
[422013042,1778463047000,-500.0,0.00010958,2]
[422013043,1778463047000,-599.6,0.00010958,2]
[422013035,1778463047000,-500.0,0.00010958,2]
[422013039,1778463047000,-500.0,0.00010958,2]
[422013041,1778463047000,-500.0,0.00010958,2]
[422013033,1778463047000,-630.04,0.00010958,2]
[422013037,1778463047000,-500.0,0.00010958,2]
[422013046,1778463047000,-500.0,0.00010958,2]
[422013044,1778463047000,-544.34,0.00010958,2]
[422013045,1778463047000,-500.0,0.00010958,2]
[422013048,1778463047000,-500.0,0.00010958,2]
[422013049,1778463047000,-1260.29,0.00010958,2]
[422013047,1778463047000,-583.99,0.00010958,2]
[422013051,1778463047000,-603.73,0.00010958,2]
[422013050,1778463047000,-1662.86,0.00010958,2]
[422013052,1778463047000,-500.0,0.00010958,2]
[422013038,1778463047000,-500.0,0.00010958,2]
[422013032,1778463047000,-500.0,0.00010958,2]
[422013017,1778463047000,-500.0,0.00010958,2]
[422013025,1778463047000,-608.65,0.00010958,2]
[422013009,1778463047000,-500.0,0.00010957,2]
[422013011,1778463047000,-500.0,0.00010957,2]
[422013054,1778463047000,-500.0,0.00010958,2]
[422013010,1778463047000,-500.0,0.00010957,2]
[422013013,1778463047000,-441.73374261,0.00010957,2]
[422013016,1778463047000,-500.0,0.00010958,2]
[422013014,1778463047000,-500.0,0.00010957,2]
[422013015,1778463047000,-1232.3818,0.00010958,2]
[422013018,1778463047000,-500.0,0.00010958,2]
[422013012,1778463047000,-500.0,0.00010957,2]
[422013020,1778463047000,-500.0,0.00010958,2]
[422013019,1778463047000,-500.0,0.00010958,2]
[422013021,1778463047000,-500.0,0.00010958,2]
[422013028,1778463047000,-500.0,0.00010958,2]
[422013029,1778463047000,-500.0,0.00010958,2]
[422013030,1778463047000,-588.5,0.00010958,2]
[422013023,1778463047000,-500.0,0.00010958,2]
[422013022,1778463047000,-500.0,0.00010958,2]
[422013024,1778463047000,-500.0,0.00010958,2]
[422013027,1778463047000,-500.0,0.00010958,2]
[422013026,1778463047000,-500.0,0.00010958,2]
[422013031,1778463047000,-500.0,0.00010958,2]
[422013064,1778463047000,-637.19,0.00010958,2]
[422013066,1778463047000,-500.0,0.00010958,2]
[422013065,1778463047000,-2387.14,0.00010958,2]
[422013093,1778463047000,-371.698,0.000112,2]
[422013091,1778463047000,-557.5788265,0.0001101,2]
[422013080,1778463047000,-352.91480167,0.00010958,2]
[422013083,1778463047000,-500.0,0.00010958,2]
[422013082,1778463047000,-2491.46,0.00010958,2]
[422013086,1778463047000,-630.65,0.00010958,2]
[422013053,1778463047000,-1392.6,0.00010958,2]
[422013088,1778463047000,-200.0,0.00010959,3]
[422013084,1778463047000,-500.0,0.00010958,2]
[422013092,1778463047000,-343.57059265,0.00011065,2]
[422013085,1778463047000,-500.0,0.00010958,2]
[422013087,1778463047000,-1957.26,0.00010958,2]
[422013095,1778463047000,-500.0,0.00011231,2]
[422013094,1778463047000,-500.0,0.0001123,2]
[422013097,1778463047000,-500.0,0.00011231,2]
[422013099,1778463047000,-1726.5978944,0.00011231,2]
[422013098,1778463047000,-567.89869759,0.00011231,2]
[422013101,1778463047000,-1320.294053,0.00011231,2]
[422013100,1778463047000,-1726.5978944,0.00011231,2]
[422013096,1778463047000,-500.0,0.00011231,2]
[422013089,1778463047000,-205.31,0.00010959,2]
[422013081,1778463047000,-1239.83,0.00010958,2]
[422013090,1778463047000,-205.32,0.00010959,2]
[422013076,1778463047000,-2523.59,0.00010958,2]
[422013055,1778463047000,-2635.86,0.00010958,2]
[422013074,1778463047000,-2230.08,0.00010958,2]
[422013057,1778463047000,-1442.51,0.00010958,2]
[422013059,1778463047000,-500.0,0.00010958,2]
[422013058,1778463047000,-500.0,0.00010958,2]
[422013063,1778463047000,-500.0,0.00010958,2]
[422013062,1778463047000,-500.0,0.00010958,2]
[422013060,1778463047000,-500.0,0.00010958,2]
[422013061,1778463047000,-12637.8,0.00010958,2]
[422013068,1778463047000,-1131.63,0.00010958,2]
[422013056,1778463047000,-500.0,0.00010958,2]
[422013073,1778463047000,-786.8,0.00010958,2]
[422013069,1778463047000,-1014.45,0.00010958,2]
[422013072,1778463047000,-692.09,0.00010958,2]
[422013079,1778463047000,-500.0,0.00010958,2]
[422013071,1778463047000,-750.24,0.00010958,2]
[422013075,1778463047000,-958.6,0.00010958,2]
[422013067,1778463047000,-578.55,0.00010958,2]
[422013077,1778463047000,-500.0,0.00010958,2]
[422013078,1778463047000,-1172.76,0.00010958,2]
[422013070,1778463047000,-1732.43,0.00010958,2]
[422013112,1778463849000,2000.0,0.00019178,120]
[422013113,1778463863000,532.63,0.00019178,120]
[422013115,1778464125000,240.1683138,0.00019178,120]
[422013173,1778464232000,-1051.0,9.7e-05,2]
[422013182,1778464232000,-151.0,0.00010689,2]
[422013183,1778464232000,-151.0,0.00010689,2]
[422013184,1778464232000,-151.0,0.00010689,2]
[422013174,1778464232000,-160.0,0.00010554,2]
[422013167,1778464232000,-184.47810001,8.952e-05,2]
[422013172,1778464232000,-335.37468188,9.46e-05,2]
[422013170,1778464232000,-311.54592902,9.3e-05,2]
[422013171,1778464232000,-188.45407098,9.3e-05,2]
[422013169,1778464232000,-4688.45407098,9.042e-05,2]
[422013166,1778464232000,-881.03980434,8.952e-05,2]
[422013177,1778464232000,-160.0,0.00010559,2]
[422013164,1778464232000,-3756.01320671,8.862e-05,2]
[422013168,1778464232000,-311.54592902,9.042e-05,2]
[422013165,1778464232000,-1157.7832205,8.952e-05,2]
[422013176,1778464232000,-160.0,0.00010554,2]
[422013179,1778464232000,-301.97,0.00010685,2]
[422013175,1778464232000,-161.61126227,0.00010554,2]
[422013194,1778464232000,-1082.76919999,0.00010757,2]
[422013188,1778464232000,-415.34100055,0.00010757,2]
[422013195,1778464232000,-515.6773213,0.00010757,2]
[422013191,1778464232000,-452.44949728,0.00010757,2]
[422013193,1778464232000,-1854.03854429,0.00010757,2]
[422013190,1778464232000,-1854.03854429,0.00010757,2]
[422013192,1778464232000,-1854.03854429,0.00010757,2]
[422013186,1778464232000,-151.0,0.00010689,2]
[422013187,1778464232000,-345.69291556,0.00010757,2]
[422013185,1778464232000,-151.0,0.00010689,2]
[422013180,1778464232000,-151.0,0.00010689,2]
[422013178,1778464232000,-150.17962651,0.00010684,2]
[422013181,1778464232000,-151.0,0.00010689,2]
[422013189,1778464232000,-1854.03854429,0.00010757,2]
[422013219,1778464238000,-1854.03854429,0.00010757,2]
[422013208,1778464238000,-1854.03854429,0.00010757,2]
[422013220,1778464238000,-64.2673206,0.00010757,2]
[422013218,1778464238000,-1854.03854429,0.00010757,2]
[422013217,1778464238000,-1854.03854429,0.00010757,2]
[422013202,1778464238000,-151.0,0.00010689,2]
[422013207,1778464238000,-1854.03854429,0.00010757,2]
[422013204,1778464238000,-404.91912152,0.00010757,2]
[422013205,1778464238000,-1449.11942277,0.00010757,2]
[422013203,1778464238000,-255.592023,0.00010757,2]
[422013210,1778464238000,-1854.03854429,0.00010757,2]
[422013206,1778464238000,-1854.03854429,0.00010757,2]
[422013214,1778464238000,-1854.03854429,0.00010757,2]
[422013221,1778464238000,-1789.77122369,0.00010757,2]
[422013216,1778464238000,-1854.03854429,0.00010757,2]
[422013215,1778464238000,-1854.03854429,0.00010757,2]
[422013213,1778464238000,-1854.03854429,0.00010757,2]
[422013211,1778464238000,-1854.03854429,0.00010757,2]
[422013209,1778464238000,-1854.03854429,0.00010757,2]
[422013223,1778464238000,-1854.03854429,0.00010757,2]
[422013224,1778464238000,-1854.03854429,0.00010757,2]
[422013222,1778464238000,-1854.03854429,0.00010757,2]
[422013227,1778464238000,-50547.41643786,0.00010758,2]
[422013225,1778464238000,-1854.03854429,0.00010757,2]
[422013226,1778464238000,-1854.03854429,0.00010757,2]
[422013228,1778464238000,-1856.86616958,0.00010758,2]
[422013212,1778464238000,-1854.03854429,0.00010757,2]
[422013254,1778464243000,-760.86230765,0.00010758,2]
[422013247,1778464243000,-767.07939458,0.00010758,2]
[422013256,1778464243000,-2292.89147835,0.00010758,2]
[422013286,1778464243000,-13998.86834645,0.00010758,2]
[422013284,1778464243000,-3215.89712044,0.00010758,2]
[422013282,1778464243000,-27518.18721161,0.00010758,2]
[422013280,1778464243000,-913.04254153,0.00010758,2]
[422013298,1778464246000,-10695.5512453,0.00010758,2]
[422013300,1778464246000,-1001.5,0.000108,2]
[422013299,1778464246000,-24695.40235643,0.00010758,2]
[422013305,1778464246000,-500.0,0.00010958,2]
[422013301,1778464246000,-151.0,0.00010907,2]
[422013302,1778464246000,-443.0,0.00010936,2]
[422013304,1778464246000,-500.0,0.00010958,2]
[422013308,1778464246000,-260.18825213,0.00010958,2]
[422013306,1778464246000,-500.0,0.00010958,2]
[422013307,1778464246000,-539.25,0.00010958,2]
[422013303,1778464246000,-1232.4729,0.00010958,2]
[422013311,1778464246000,-500.0,0.00010958,2]
[422013309,1778464246000,-239.81174787,0.00010958,2]
[422013319,1778464246000,-500.0,0.00010958,2]
[422013317,1778464246000,-500.0,0.00010958,2]
[422013318,1778464246000,-500.0,0.00010958,2]
[422013316,1778464246000,-583.29,0.00010958,2]
[422013313,1778464246000,-500.0,0.00010958,2]
[422013314,1778464246000,-500.0,0.00010958,2]
[422013312,1778464246000,-618.40652403,0.00010958,2]
[422013310,1778464246000,-515.84836247,0.00010958,2]
[422013315,1778464246000,-500.0,0.00010958,2]
[422013328,1778464247000,-696.04,0.00010958,2]
[422013331,1778464247000,-500.0,0.00010958,2]
[422013329,1778464247000,-575.14,0.00010958,2]
[422013330,1778464247000,-367.63092389,0.00010958,2]
[422013332,1778464247000,-625.21,0.00010958,2]
[422013322,1778464247000,-500.0,0.00010958,2]
[422013325,1778464247000,-500.0,0.00010958,2]
[422013323,1778464247000,-603.78,0.00010958,2]
[422013324,1778464247000,-225.37820782,0.00010958,2]
[422013326,1778464247000,-500.0,0.00010958,2]
[422013327,1778464247000,-500.0,0.00010958,2]
[422013321,1778464247000,-563.98,0.00010958,2]
[422013320,1778464247000,-500.0,0.00010958,2]
[422013333,1778464247000,-1208.64,0.00010958,2]
[422013334,1778464247000,-503.23955502,0.00010958,2]
[422013343,1778464247000,-13.05497724,0.00010958,2]
[422013335,1778464247000,-578.94,0.00010958,2]
[422013350,1778464247000,-5634.18176981,0.00010958,2]
[422013348,1778464247000,-500.0,0.00010958,2]
[422013349,1778464247000,-500.79789014,0.00010958,2]
[422013346,1778464247000,-1626.75,0.00010958,2]
[422013347,1778464247000,-513.32411199,0.00010958,2]
[422013341,1778464247000,-542.93,0.00010958,2]
[422013336,1778464247000,-588.78651853,0.00010958,2]
[422013344,1778464247000,-567.86502276,0.00010958,2]
[422013345,1778464247000,-500.0,0.00010958,2]
[422013340,1778464247000,-504.21915121,0.00010958,2]
[422013339,1778464247000,-500.0,0.00010958,2]
[422013338,1778464247000,-501.50493521,0.00010958,2]
[422013337,1778464247000,-503.49869039,0.00010958,2]
[422013342,1778464247000,-500.0,0.00010958,2]
[422013431,1778465432000,-1914.60237217,7.227e-05,2]
[422013433,1778465432000,-1284.63882949,7.227e-05,2]
[422013435,1778465432000,-4943.52552253,7.3e-05,2]
[422013437,1778465432000,-56.47447747,7.3e-05,2]
[422013439,1778465432000,-300.0,7.373e-05,2]
[422013451,1778465432000,-500.0,7.599e-05,2]
[422013449,1778465432000,-500.0,7.599e-05,2]
[422013445,1778465432000,-408.46616307,7.599e-05,2]
[422013447,1778465432000,-70.81938097,7.599e-05,2]
[422013453,1778465432000,-268.90552141,7.599e-05,2]
[422013441,1778465432000,-5000.0,7.374e-05,2]
[422013443,1778465432000,-345.97391789,7.486e-05,2]
[422013515,1778465438000,-500.0,7.599e-05,2]
[422013499,1778465438000,-1754.00211669,7.523e-05,2]
[422013501,1778465438000,-424.1750197,7.523e-05,2]
[422013504,1778465438000,-2821.82286361,7.523e-05,2]
[422013505,1778465438000,-146.31545592,7.599e-05,2]
[422013507,1778465438000,-500.0,7.599e-05,2]
[422013511,1778465438000,-500.0,7.599e-05,2]
[422013509,1778465438000,-174.33414719,7.599e-05,2]
[422013513,1778465438000,-500.0,7.599e-05,2]
[422013517,1778465438000,-500.0,7.599e-05,2]
[422013521,1778465438000,-500.0,7.599e-05,2]
[422013524,1778465438000,-25740.46058984,7.6e-05,2]
[422013523,1778465438000,-186.03712746,7.599e-05,2]
[422013537,1778465438000,-42182.37006305,7.6e-05,2]
[422013538,1778465438000,-2923.86707462,7.6e-05,2]
[422013539,1778465438000,-40981.71822372,7.6e-05,2]
[422013519,1778465438000,-500.0,7.599e-05,2]
[422013543,1778465440000,-11754.95295372,7.6e-05,2]
[422013545,1778465440000,-300.0,7.751e-05,2]
[422013546,1778465440000,-300.0,7.751e-05,2]
[422013544,1778465440000,-300.0,7.751e-05,2]
[422013547,1778465440000,-300.0,7.751e-05,2]
[422013549,1778465440000,-300.0,7.751e-05,2]
[422013548,1778465440000,-300.0,7.751e-05,2]
[422013563,1778465441000,-166.7231926,8.954e-05,2]
[422013570,1778465441000,-160.0,0.00010482,2]
[422013568,1778465441000,-661.82792723,9.54e-05,2]
[422013565,1778465441000,-864.0,9.379e-05,2]
[422013567,1778465441000,-408.2492231,9.486e-05,2]
[422013564,1778465441000,-436.42262348,9.063e-05,2]
[422013561,1778465441000,-199.0,8.11e-05,2]